Cogmind - Beta 14 @@@ ROGUE MODE // 2024.09.08 @ 14:22:12 Player: albenzo Result: Destroyed by P-60 Hacker with Shock Rifle Performance ------------- Evolutions (0) 0 Regions Visited (2) 400 Robots Destroyed (28) 140 Value Destroyed (721) 721 Prototype IDs (0) 0 Alien Tech Used (0) 0 Bonus (0) 0 TOTAL SCORE: 1261 Bonus ------- None Cogmind --------- Core Integrity 0/250 Matter 295/300 Energy 80/100 System Corruption 2% Temperature Cool (0) Movement Treading (160) Location -10/Subcaves Parts ------- > --- POWER (1) -------- (None) > --- PROPULSION (2) --- Light Treads > --- UTILITY (2) ------ (None) > --- WEAPON (2) ------- Hammer > --- INVENTORY (5) ---- Huge Storage Unit EM Shotgun EM Shotgun Mini Grenade Launcher Peak State ------------ > --- POWER ------------ Ion Engine > --- PROPULSION ------- Light Treads Light Treads > --- UTILITY ---------- Huge Storage Unit Medium Armor Plating > --- WEAPON ----------- EM Shotgun EM Shotgun > --- INVENTORY -------- Subdweller Power Source Subdweller Power Source Light Treads Aluminum Leg Improved Heat Sink Medium Storage Unit Medium Battery Large Matter Pod Structural Scanner Subdweller Optics Seismic Detector EM Shotgun EM Shotgun Small Laser Light Assault Rifle Mini Grenade Launcher Mini Grenade Launcher Mini Grenade Launcher Mini Grenade Launcher Hammer [Rating: 13] Favorites ----------- Power Ion Engine Engine Ion Engine Propulsion Light Treads Treads Light Treads Leg Aluminum Leg Utility Scrap Shield Device Seismic Detector Storage Huge Storage Unit Protection Scrap Shield Weapon EM Shotgun Energy Gun EM Shotgun Ballistic Gun Light Assault Rifle Launcher Mini Grenade Launcher Impact Weapon Hammer Build | -11 -10 -10 ------- Run | Yrd Mat Sub Slots Evolved . | . . . Power . | . . . Propulsion . | . . . Utility . | . . . Weapon . | . . . Parts Attached 45 | 1 21 23 Power 3 | . 1 2 Engine 3 | . 1 2 Core . | . . . Reactor . | . . . Propulsion 6 | . 4 2 Treads 5 | . 3 2 Leg 1 | . 1 . Wheel . | . . . Hover . | . . . Flight . | . . . Utility 20 | 1 11 8 Device 6 | 1 4 1 Storage 2 | . 2 . Processor . | . . . Hackware . | . . . Protection 12 | . 5 7 Artifact . | . . . Weapon 16 | . 5 11 Energy Gun 9 | . 2 7 Energy Cannon . | . . . Ballistic Gun 2 | . 2 . Ballistic Cannon . | . . . Launcher 1 | . . 1 Special Weapon . | . . . Impact Weapon 4 | . 1 3 Slashing Weapon . | . . . Piercing Weapon . | . . . Special Melee Weapon . | . . . Unidentified Prototypes . | . . . Parts Lost 14 | . 2 12 Power 1 | . . 1 Propulsion 3 | . . 3 Utility 5 | . . 5 Weapon 5 | . 2 3 Highest Loss Streak 5 | . 1 5 To Critical Strikes . | . . . Average Slot Usage (%) 92 | . 98 88 Engine 13 | . 14 13 Treads 23 | . 15 27 Leg 4 | . 12 . Device 3 | . 5 2 Storage 7 | . 14 4 Protection 10 | . 8 11 Energy Gun 20 | . 25 18 Ballistic Gun 5 | . . 8 Impact Weapon 1 | . . 1 Peak Build Rating 13 | 7 11 13 Average Rating 10 | 6 8 11 On Entrance 7 | 6 7 10 Naked Turns . | . . . Heaviest Build 95 | 14 95 94 Greatest Support 40 | 20 40 40 Greatest Overweight (x) 2 | . 2 2 Average Overweight (x) . | . . . Largest Inventory Capacity 25 | 8 25 25 Average Capacity 11 | 8 13 10 Most Carried 25 | 6 25 25 Average Carried 10 | 6 11 10 Final Capacity 25 | 8 25 5 Final Carried 23 | 6 23 4 Class Distribution -------------------- 89% | Mutant 10% | Scavenger-Mutant Dominant Class ---------------- Mutant | -10/Materials Mutant | -10/Subcaves Resources | -11 -10 -10 ----------- Run | Yrd Mat Sub Matter Collected 736 | 210 188 338 Remotely . | . . . Salvage Created 1053 | 95 545 413 Parts 70 | 2 43 25 Haulers Intercepted 2 | . 2 . Recyclers Shooed . | . . . Parts Field Recycled . | . . . Retrieved Matter . | . . . Parts Self-Destructed 8 | . . 8 Prevented . | . . . Kills | -11 -10 -10 ------- Run | Yrd Mat Sub Combat Hostiles Destroyed 23 | . 14 9 Guns 21 | . 13 8 Classes Destroyed 7 | 2 4 1 Tunneler 1 | 1 . . Hauler 2 | . 2 . Recycler 1 | 1 . . Watcher 1 | . 1 . Swarmer 7 | . 7 . Grunt 8 | . 7 1 Subdweller 8 | . . 8 Best Kill Streak 3 | 2 3 2 Combat Bots Only 3 | . 3 2 Max Kills in Single Turn 1 | 1 1 1 Gunslinging . | . . . Exploded . | . . . Melee . | . . . Uniques/NPCs Destroyed . | . . . Combat | -11 -10 -10 -------- Run | Yrd Mat Sub Hostile Shots Fired 202 | . 62 140 Missed 51 | . 12 39 Damage Taken 2368 | . 535 1833 Core 260 | . 63 197 Absorbed by Shields . | . . . Core Remaining (%) 100 | 100 . . Volleys Fired 107 | 6 50 51 Largest 2 | 2 2 2 Hottest 90 | 90 90 90 Shots Fired 204 | 12 94 98 Gun 201 | 12 94 95 Cannon . | . . . Launcher 3 | . . 3 Special . | . . . Kinetic 57 | . . 57 Thermal 106 | 12 94 . Explosive 3 | . . 3 Electromagnetic 38 | . . 38 Robot Hit Streak 18 | 4 10 18 Robot Miss Streak 3 | 1 3 1 Penetration Max . | . . . Secondary Targets 1 | . . 1 Max Gunslinging Chain 1 | . . 1 Shots Hit Robots 167 | 9 64 94 Core Hits 58 | 3 26 29 Critical Kills . | . . . Critical Parts Destroyed 2 | . . 2 Critical Strikes 5 | . 1 4 Burn 1 | . 1 . Destroy 2 | . . 2 Smash 2 | . . 2 Melee Attacks 40 | . 4 36 Impact 40 | . 4 36 Slashing . | . . . Piercing . | . . . Sneak Attacks . | . . . Combat Hostiles . | . . . Follow-up Attacks . | . . . Damage Inflicted 1996 | 108 765 1123 Guns 1768 | 108 765 895 Cannons . | . . . Explosions . | . . . Melee 228 | . . 228 Ramming . | . . . Kinetic 423 | . . 423 Thermal 873 | 108 765 . Explosive . | . . . Electromagnetic 472 | . . 472 Impact 228 | . . 228 Slashing . | . . . Piercing . | . . . Highest Corruption 2 | . . 2 Average Corruption 1 | . . 1 Corruption Purged . | . . . Corruption Blocked . | . . . Effects 1 | . . 1 Message Errors 1 | . . 1 Overload Shots . | . . . Overflow Damage 67 | . . 67 Projectiles . | . . . Explosions . | . . . Melee 67 | . . 67 Knockbacks . | . . . Impact . | . . . Kinetic . | . . . Secondary . | . . . Self-Inflicted Damage 25 | . . 25 Shots 1 | . . 1 Rammed . | . . . Targets Rammed . | . . . Kicked . | . . . Crushed . | . . . Highest Temperature 327 | 180 327 10 Average Temperature 105 | 92 108 4 Received Heat Transfer 576 | . 264 312 Siege Activations . | . . . Robots Corrupted 1 | . . 1 Combat Hostiles 1 | . . 1 Parts Fried 5 | . . 5 Impact Corruptions 4 | . . 4 Robots Melted 1 | . 1 . Combat Hostiles 1 | . 1 . Parts Melted 4 | . 3 1 Heat Transferred 2309 | 285 2024 . Parts Sabotaged . | . . . Parts Stolen . | . . . Parts Stripped . | . . . Power Chain Reactions . | . . . Alert | -11 -10 -10 ------- Run | Yrd Mat Sub Peak Influence 180 | 10 180 . Initial 6 | . 6 . Average 63 | 6 66 . Maximum Alert Level . | . . . Low Security (%) 100 | 100 100 . Level 1 . | . . . Level 2 . | . . . Level 3 . | . . . Level 4 . | . . . Level 5 . | . . . High Security . | . . . Max Security . | . . . Squads Dispatched 3 | . 3 . Investigation 1 | . 1 . Extermination . | . . . Reinforcement 2 | . 2 . Assault . | . . . Garrison . | . . . Intercept . | . . . Searches Triggered . | . . . Construction Impeded . | . . . Haulers Reinforced . | . . . Active Scanning Responses . | . . . Cargo Convoy Interrupts . | . . . Stealth | -11 -10 -10 --------- Run | Yrd Mat Sub Distress Signals . | . . . Communications Jammed . | . . . Distress Signals . | . . . Times Spotted 34 | . 23 11 Peak Tracking Total 5 | . 5 3 Tactical Retreats 2 | . 2 . Traps | -11 -10 -10 ------- Run | Yrd Mat Sub Traps Triggered 2 | . 1 1 Indirectly . | . . . Trap Hack Attempts . | . . . Triggered . | . . . Disarmed 6 | . 6 . Reprogrammed . | . . . Reused . | . . . Traps Extracted . | . . . Installed . | . . . Triggered . | . . . Machines | -11 -10 -10 ---------- Run | Yrd Mat Sub Machines Disabled . | . . . Max in Single Turn . | . . . Machines Repaired . | . . . Machines Dismantled . | . . . Machines Sabotaged . | . . . Overloaded Fab Kills . | . . . Hacking | -11 -10 -10 --------- Run | Yrd Mat Sub Machines Accessed 8 | . 7 1 Terminals 5 | . 5 . Fabricators . | . . . Repair Stations 1 | . 1 . Recycling Units 1 | . 1 . Scanalyzers . | . . . Garrison Access . | . . . Total Hacks 21 | . 16 5 Successful 13 | . 8 5 Failed 8 | . 8 . Catastrophic . | . . . Database Lockouts . | . . . Manual 7 | . 7 . Terminals 12 | . 12 . Fabricators . | . . . Repair Stations 2 | . 2 . Recycling Units 2 | . 2 . Scanalyzers . | . . . Garrison Access . | . . . Terminal Hacks 9 | . 4 5 Record 5 | . . 5 Alert Level 1 | . 1 . Locate Traps 1 | . 1 . Disarm Traps 1 | . 1 . Recall Reinforcements 1 | . 1 . Fabricator Hacks . | . . . Repair Station Hacks 1 | . 1 . Scan Component 1 | . 1 . Recycling Unit Hacks . | . . . Scanalyzer . | . . . Garrison Access Hacks . | . . . Unauthorized Hacks 3 | . 3 . Terminals 2 | . 2 . Botnet 2 | . 2 . Fabricators . | . . . Repair Stations . | . . . Recycling Units 1 | . 1 . Reject 1 | . 1 . Scanalyzers . | . . . Garrison Access . | . . . Data Cores Recovered . | . . . Used . | . . . Hacking Detections 7 | . 7 . Full Trace Events . | . . . Feedback Events . | . . . Feedback Blocked . | . . . Robot Schematics Acquired . | . . . Robots Built . | . . . Authchips . | . . . Time . | . . . Total Robot Build Rating . | . . . Part Schematics Acquired . | . . . Parts Built . | . . . Authchips . | . . . Time . | . . . Total Part Build Rating . | . . . Parts Repaired . | . . . Time . | . . . Parts Recycled . | . . . Recycled Matter . | . . . Retrieved Matter . | . . . Retrieved Components . | . . . Parts Scanalyzed . | . . . Part Schematics Acquired . | . . . Parts Damaged . | . . . Bothacking | -11 -10 -10 ------------ Run | Yrd Mat Sub Used RIF Installer . | . . . Robots Hacked . | . . . Non-combat . | . . . Combat . | . . . Robot Hacks Applied . | . . . Relay Couplers Released . | . . . Fabnet Peak Effective % . | . . . Robots Rewired . | . . . Allies Hacked . | . . . Hacks Repelled . | . . . Allies | -11 -10 -10 -------- Run | Yrd Mat Sub Total Allies . | . . . Largest Group . | . . . Highest-Rated Group . | . . . Highest-Rated Ally . | . . . Total Orders . | . . . Ally Attacks . | . . . Total Damage . | . . . Kills . | . . . Allies Corrupted . | . . . Allies Melted . | . . . Intel | -11 -10 -10 ------- Run | Yrd Mat Sub Robot Analysis Total . | . . . Derelict Logs Recovered 1 | . . 1 Drone Launches . | . . . Drone Recoveries . | . . . Exploration | -11 -10 -10 ------------- Run | Yrd Mat Sub Turns Passed 4120 | 52 1363 2705 Spaces Moved 1709 | 26 624 1059 Core . | . . . Treads 1355 | . 296 1059 Legs 354 | 26 328 . Wheels . | . . . Hover . | . . . Flight . | . . . Fastest Speed 120 | 120 120 160 Average Speed 181 | 120 165 192 Slowest Speed 320 | 120 320 320 Overloaded Moves . | . . . Propulsion Burnouts . | . . . Robots Hopped . | . . . Cave-ins Triggered . | . . . Exploration Rate (%) 51 | 4 94 55 Regions Visited 2 Branch Regions 1 Pre-discovered Areas . | . . . Known Exits Taken . | . . . Unknown Exits Taken 2 | 1 1 . Scrap Searched 1 | . . 1 Spaces Dug 1 | . 1 . Terrain Destroyed 26 | . 1 25 Melee 1 | . 1 . Projectile . | . . . AOE 25 | . . 25 Terrain Rammed . | . . . Walls Destroyed . | . . . Machines Disabled . | . . . Actions | -11 -10 -10 --------- Run | Yrd Mat Sub Total 2456 | 34 849 1573 Wait 496 | 2 122 372 Move 1707 | 25 623 1059 Hop . | . . . Pick Up 31 | . 21 10 Fast Attach 4 | 1 1 2 Attach 12 | . 3 9 Detach 4 | . 1 3 Swap 29 | . 17 12 Drop 16 | . 7 9 Fire 107 | 6 50 51 Melee 40 | . 4 36 Ram . | . . . Kick . | . . . Crush . | . . . Escape Stasis . | . . . Rewire . | . . . Trap . | . . . Miscellaneous 10 | . . 10 Route ------- -11/Scrapyard -10/Materials (discovered 4 exits: [*Mat x2] / [*Min] / *Sub) -10/Subcaves (discovered 1 exit: *Rec) History --------- Turn | Location | Event 1 | -11/Scrapyard | Discovered new exit (range 3) 53 | -11/Scrapyard | Entered Materials 312 | -10/Materials | Build established: Mutant 565 | -10/Materials | Discovered new exit (range 15) 743 | -10/Materials | Discovered new exit (range 15) 973 | -10/Materials | Discovered new exit (range 9) 1368 | -10/Materials | Discovered new exit (range 4) 1416 | -10/Materials | Entered Subcaves 1542 | -10/Subcaves | Shifting Twisted Machinery released Sub. Optics 1804 | -10/Subcaves | Learned 2 Materials zone layouts 1840 | -10/Subcaves | Shifting Twisted Machinery released Sub. Power Source 2016 | -10/Subcaves | Visited Clippyterm 2026 | -10/Subcaves | Identified exit to Recycling 2026 | -10/Subcaves | Learned Factory fabricator intel 2101 | -10/Subcaves | Build established: Scavenger-Mutant 2233 | -10/Subcaves | Lost 5 parts (1n3u1w) 2422 | -10/Subcaves | Build established: Mutant 2751 | -10/Subcaves | A swath of the cavern ceiling suddenly collapsed 3303 | -10/Subcaves | Core integrity fell below 50% 3700 | -10/Subcaves | Shifting Twisted Machinery released Sub. Power Source 3700 | -10/Subcaves | Shifting Twisted Machinery released Battle Cannon 3999 | -10/Subcaves | Shifting Twisted Machinery released Mak. Laser 4018 | -10/Subcaves | Shifting Twisted Machinery released Piercing Trap 4079 | -10/Subcaves | Ambushed by research squad 4117 | -10/Subcaves | Core integrity fell below 20% 4121 | -10/Subcaves | Destroyed by P-60 Hacker with Shock Rifle Last Messages --------------- 04094_ Destroyed Remote Datajack. 04094_ P-60 Hacker system corrupted by crushing effect. 04098_ EM Shotgun destroyed. 04099_ Slug penetrates Wall. 04106_ 5J|YINB0XPTAS>:WCBV >A|> U35F AA3G9 04107_ Scrap Shield destroyed. 04108_ P-60 Hacker suffers critical hit (Smash). 04108_ Destroyed Gravmag System. 04108_ Destroyed Target Analyzer. 04108_ P-60 Hacker system corrupted by crushing effect. 04108_ Slug penetrates P-60 Hacker. 04109_ Wall collapses. 04109_ Slug penetrates Wall. 04109_ Sub. Power Source destroyed. 04111_ Penetrated by Slug. 04115_ Slug penetrates Wall. 04115_ Lgt. Treads destroyed. 04119_ EM Shotgun destroyed. 04119_ Destroyed Mic. Nuclear Core. 04119_ P-60 Hacker system corrupted by crushing effect. Map ----- +----------------------------------------------------+ | ?????????????????#????# ####?# | | ??????????????????????# #??## | | ??????????????????????## ##?# | | ???????????????????????## ### ### | | ??????????????????????#### ##### ##? | | ??????????????#???##??# ## ##?## [ #? | | ??????????????# ## ## #??# #? | | ??????????????# #??# ##? | | ??????????????# ##??# ##?? | | ???????????????# #####???## ##??? | | ???????????????# [ ## #### ##???# #???? | | ???????????????## # ??## ## #???# #???? | | ???????????????????#????# " "" #???# ##??? | | ????????????????????????# "" " #???# ##?? | | ???????????????????????#"""""=" #???# #?? | | ???????????????????????#### ""#"" ##???# ### | | ???????????????????# ??#####"###" #????# | | ???????????????##?## ??# ###""##" #????## | | ??????????????## ## ??#"""""#?# ##??### ! | | ???????????#### !##"#?#""""[### #??# | | ???????????# =%!"""## #??## | | ????????????? &&&"""""& #???# | | ??????????????%"&""#" ## ## #???## | | ???????????????#* ### ### #### #????# ### | | ???????????????# "## ]### ##### #????# ##?? | | ???????????????# #;@ ## ## ## #????## #?? | | ???????????????# hp ### " #" #????# ##?? | | ??????????????# ######?# ""## #????# ##?? | | ??????????????# ?????????## # ##????## ### | | ??????????????#??????????### ## #?????# # # | | ?????????????????????????# ####?## | | ?????????????????????????## #?# ### | | ??????????????????????????## ##?###?## | | ???????????????????????????# ##???????# | | ???????????????????????????## ###????????## | | ????????????????????????????#######???????????? | | ??????????????????????????????????????????????? | | ??????????????????????????????????????????????? | | ??????????????????????????????????????????????? | | ??????????????????????????????????????????????? | | ??????????????????????????????????????????????? | | ??????????????????????????????????????????????? | | ??????????????????????????????????????????????? | | ??????????????????????????????????????????????? | | ??????????????????????????????????????????????? | | ??????????????????????????????????????????????? | | ??????????????????????????????????????????????? | | ??????????????????????????????????????????????? | | ??????????????????????????????????????????????? | | ??????????????????????????????????????????????? | +----------------------------------------------------+ Best States ------------- Heat Dissipation 25 Energy Generation 10 Energy Capacity 250 Matter Stores 300 Matter Capacity 300 Sight Range 16 Terrain Scan Density 10 Armor Coverage 800 Evasion (%) 55 Recoil Reduction 2 Item Schematics ----------------- None Robot Schematics ------------------ None Fabricated ------------ Nothing Alien Tech Used ----------------- None Achievements -------------- None Challenges ------------ None Game ------ Seed FlakPrecisionHammer Manual? 0 Play Time 00:22:39 Cumulative 176.2 hours Start 2024.09.08 @ 14:00:02 End 2024.09.08 @ 14:22:12 Sessions 1 Manual Loads 0 Difficulty Rogue Special Mode None Game No. 136 Rogue 136 Adventurer 0 Explorer 0 Win Type - Total 12 Types 8/0/3/1/0/0/0/0/0 Lore% 72 Gallery% 70 Achievement% 64 Wizard Run 0 Options --------- Layout 0 ASCII 0 Keyboard 1 Movement Vi Keybinds 0 Fullscreen 2 Font 24/Swanston Map View 76x50 Zoom Use 0% Tactical HUD 1 Map Filters NONE Filters NONE Steam 1 RUN: a293b02f-0e5c-49a5-9bac-3c7159bb0c0a